Cogmind - Beta 10.2 @@@ ROGUE MODE // 2021.02.19 @ 23:03:21 Player: CrossedViper Result: Destroyed by 99-TNT with 99-TNT's Nukerbomber Performance ------------- Evolutions (1) 500 Regions Visited (6) 1200 Robots Destroyed (91) 455 Value Destroyed (2335) 2335 Prototype IDs (29) 580 Alien Tech Used (0) 0 Bonus (-48) -48 TOTAL SCORE: 5022 Bonus ------- Follower Combat Kills 141 Aligned with FarCom 300 Friendly Fire -489 Cogmind --------- Core Integrity 0/400 Matter 197/300 Energy 309/310 System Corruption 1% Temperature Cool (13) Movement Treading (240) Ox4 Location -8/Mines Parts ------- > --- POWER (1) -------- Reinforced Fission Core > --- PROPULSION (2) --- Light Treads > --- UTILITY (4) ------ High-capacity Storage Unit High-capacity Storage Unit Experimental Targeting Computer > --- WEAPON (2) ------- Autogun > --- INVENTORY (20) --- Light Treads Light Treads Light Treads Experimental Heat Sink Large Storage Unit High-capacity Matter Pod (200) Gravity Neutralizing Apparatus AS-neutralizer No. 17b Beamcaster Heavy Assault Rifle Heavy Assault Rifle Heavy Assault Rifle Autogun Autogun EMP Blaster EMP Blaster Rocket Launcher Mini Grenade Launcher Peak State ------------ > --- POWER ------------ Reinforced Fission Core > --- PROPULSION ------- Light Treads Light Treads > --- UTILITY ---------- Experimental Heat Sink Large Storage Unit High-capacity Storage Unit High-capacity Storage Unit > --- WEAPON ----------- AWS/Gauss > --- INVENTORY -------- Light Treads Light Treads Light Treads Light Treads Light Treads Light Treads Large Storage Unit High-capacity Matter Pod Gravity Neutralizing Apparatus Experimental Targeting Computer Light Armor Plating Light Armor Plating Medium Armor Plating AS-neutralizer No. 17b Beamcaster Heavy Assault Rifle Heavy Assault Rifle Heavy Assault Rifle Autogun Autogun Autogun Autogun 8R-AWN's Boregun EMP Blaster Rocket Launcher Mini Grenade Launcher [Rating: 40] Favorites ----------- Power Heavy Ion Engine Engine Heavy Ion Engine Power Core Reinforced Fission Core Propulsion Light Treads Treads Light Treads Leg Aluminum Leg Utility Large Storage Unit Device Structural Scanner Storage Large Storage Unit Processor Experimental Targeting Computer Hackware Hacking Suite Protection Light Armor Plating Weapon Assault Rifle Energy Gun Beamcaster Ballistic Gun Assault Rifle Launcher Rocket Launcher Build | -11 -10 -10 -9 -9 -9 -8 ------- Run | Scr Mat Min Mat Min Exi Min Slots Evolved 2 | . . . 2 . . . Power . | . . . . . . . Propulsion . | . . . . . . . Utility 2 | . . . 2 . . . Weapon . | . . . . . . . Parts Attached 46 | . 6 . 20 2 12 6 Power 2 | . . . 1 . 1 . Engine 1 | . . . 1 . . . Core 1 | . . . . . 1 . Reactor . | . . . . . . . Propulsion 8 | . 3 . 2 . 1 2 Treads 8 | . 3 . 2 . 1 2 Leg . | . . . . . . . Wheel . | . . . . . . . Hover . | . . . . . . . Flight . | . . . . . . . Utility 21 | . 2 . 10 1 7 1 Device 6 | . . . 2 . 4 . Storage 6 | . 1 . 4 1 . . Processor 1 | . . . . . . 1 Hackware 2 | . . . 2 . . . Protection 6 | . 1 . 2 . 3 . Artifact . | . . . . . . . Weapon 15 | . 1 . 7 1 3 3 Energy Gun 3 | . . . 3 . . . Energy Cannon . | . . . . . . . Ballistic Gun 6 | . . . 1 . 2 3 Ballistic Cannon . | . . . . . . . Launcher 6 | . 1 . 3 1 1 . Special Weapon . | . . . . . . . Impact Weapon . | . . . . . . . Slashing Weapon . | . . . . . . . Piercing Weapon . | . . . . . . . Special Melee Weapon . | . . . . . . . Unidentified Prototypes 6 | . . . 1 . 3 2 Parts Lost 7 | . . . . 1 2 4 Power . | . . . . . . . Propulsion 1 | . . . . . . 1 Utility 4 | . . . . 1 2 1 Weapon 2 | . . . . . . 2 Highest Loss Streak 4 | . . . . 1 2 4 Average Slot Usage (%) 97 | . 96 100 99 98 90 90 Engine 11 | . 14 14 11 11 8 . Treads 22 | . 21 28 22 22 22 19 Device 2 | . . . 5 . 3 . Storage 27 | . 19 28 22 33 33 24 Hackware 4 | . . . 15 . . . Protection 3 | . 5 . . 9 1 6 Energy Gun 3 | . 7 . 7 3 . . Ballistic Gun 11 | . 14 14 10 11 10 19 Launcher 7 | . 6 14 3 7 7 . Naked Turns . | . . . . . . . Heaviest Build 119 | 11 20 20 82 97 119 104 Greatest Support 40 | 20 40 40 40 40 40 40 Greatest Overweight (x) 2 | . . . 2 2 2 2 Average Overweight (x) . | . . . . 2 2 2 Largest Inventory Capacity 26 | . 10 10 24 26 26 26 Average Capacity 18 | . 7 10 16 24 26 21 Most Carried 26 | . 10 10 20 23 26 24 Average Carried 16 | . 6 9 12 21 24 19 Final Capacity 26 | 6 10 10 24 26 26 20 Final Carried 24 | 6 9 10 20 23 24 18 Class Distribution -------------------- 45% | Hauler-Mutant 31% | Mutant 21% | Hacker-Mutant Dominant Class ---------------- Mutant | -10/Materials Mutant | -10/Mines Hacker-Mutant | -9/Materials Hauler-Mutant | -9/Mines Hauler-Mutant | -9/Exiles Scavenger-Mutant | -8/Mines Resources | -11 -10 -10 -9 -9 -9 -8 ----------- Run | Scr Mat Min Mat Min Exi Min Matter Collected 1126 | 200 126 69 289 359 83 . Remotely . | . . . . . . . Salvage Created 2615 | . 387 206 869 357 796 . Parts 185 | . 39 18 46 34 48 . Haulers Intercepted 3 | . 1 . 2 . . . Recyclers Shooed 1 | . . . . 1 . . Parts Field Recycled . | . . . . . . . Retrieved Matter . | . . . . . . . Parts Self-Destructed . | . . . . . . . Prevented . | . . . . . . . Kills | -11 -10 -10 -9 -9 -9 -8 ------- Run | Scr Mat Min Mat Min Exi Min Combat Hostiles Destroyed 63 | . 7 5 17 18 16 . Guns 27 | . 3 . 6 2 16 . AOE 36 | . 4 5 11 16 . . Classes Destroyed 15 | . 7 1 2 1 4 . Worker 5 | . 2 . 3 . . . Builder 3 | . 2 1 . . . . Tunneler 5 | . . 1 . 4 . . Hauler 3 | . 1 . 2 . . . Recycler 1 | . . . 1 . . . Operator 3 | . 2 . 1 . . . Watcher 3 | . 2 . 1 . . . Swarmer 14 | . 3 3 . 8 . . Grunt 34 | . 4 2 12 9 7 . Brawler 2 | . . . . 1 1 . Duelist 1 | . . . . . 1 . Sentry 5 | . . . 5 . . . Hunter 2 | . . . . . 2 . Programmer 4 | . . . . . 4 . Zionite 2 | . . . . . 2 . Thug 3 | . . 2 1 . . . Best Kill Streak 15 | . 5 4 12 6 15 . Combat Bots Only 15 | . 3 3 8 5 15 . Max Kills in Single Turn 6 | . 2 3 6 5 2 . Gunslinging . | . . . . . . . Exploded 5 | . 2 3 4 5 . . Melee . | . . . . . . . Uniques/NPCs Destroyed 1 | . . . . . 1 . 8R-AWN (-9/Exiles) Combat | -11 -10 -10 -9 -9 -9 -8 -------- Run | Scr Mat Min Mat Min Exi Min Damage Taken 2709 | . 133 81 331 298 1103 763 Core 509 | . 11 26 67 53 223 129 Absorbed by Shields . | . . . . . . . Core Remaining (%) 92 | 100 . 85 . . . . Volleys Fired 107 | . 25 10 36 29 1 6 Largest 2 | . 2 1 2 2 1 2 Hottest 95 | . 60 30 95 95 20 53 Shots Fired 240 | . 48 10 58 36 78 10 Gun 202 | . 46 5 49 14 78 10 Cannon . | . . . . . . . Launcher 38 | . 2 5 9 22 . . Special . | . . . . . . . Kinetic 150 | . 23 5 27 7 78 10 Thermal 29 | . . . 22 7 . . Explosive 38 | . 2 5 9 22 . . Electromagnetic 23 | . 23 . . . . . Robot Hit Streak 20 | . 7 9 13 9 20 8 Robot Miss Streak 3 | . 3 1 2 2 1 2 Penetration Max . | . . . . . . . Secondary Targets 1 | . . . 1 . . . Max Gunslinging Chain 1 | . . . 1 . . . Autonomous 78 | . . . . . 78 . Shots Hit Robots 172 | . 31 9 38 17 71 6 Core Hits 129 | . 20 12 36 30 29 2 Critical Hits 3 | . . . . . 2 1 Critical Kills . | . . . . . . . Critical Parts Destroyed 1 | . . . . . 1 . Melee Attacks . | . . . . . . . Impact . | . . . . . . . Slashing . | . . . . . . . Piercing . | . . . . . . . Sneak Attacks . | . . . . . . . Combat Hostiles . | . . . . . . . Follow-up Attacks . | . . . . . . . Damage Inflicted 7200 | . 617 444 1653 1947 2476 63 Guns 3807 | . 443 79 597 182 2443 63 Cannons . | . . . . . . . Explosions 3286 | . 171 338 1051 1726 . . Melee . | . . . . . . . Ramming 107 | . 3 27 5 39 33 . Kinetic 3071 | . 176 79 243 67 2443 63 Thermal 514 | . 45 . 354 115 . . Explosive 3241 | . 126 338 1051 1726 . . Electromagnetic 267 | . 267 . . . . . Impact . | . . . . . . . Slashing . | . . . . . . . Piercing . | . . . . . . . Highest Corruption 1 | . . . . . 1 1 Average Corruption 1 | . . . . . 1 1 Corruption Purged . | . . . . . . . Overload Shots . | . . . . . . . Overflow Damage 61 | . . . 29 32 . . Projectiles . | . . . . . . . Explosions 61 | . . . 29 32 . . Melee . | . . . . . . . Knockbacks . | . . . . . . . Impact . | . . . . . . . Kinetic . | . . . . . . . Secondary . | . . . . . . . Self-Inflicted Damage 198 | . . 39 40 119 . . Shots 8 | . . 1 1 6 . . Rammed 20 | . . 6 2 6 6 . Targets Rammed 23 | . 1 8 2 6 6 . Kicked . | . . . . . . . Crushed 3 | . 1 2 . . . . Highest Temperature 210 | . 30 4 99 210 . 54 Average Temperature 41 | . 18 2 28 80 . 26 Received Heat Transfer 273 | . 63 24 99 87 . . Siege Activations . | . . . . . . . Robots Corrupted . | . . . . . . . Combat Hostiles . | . . . . . . . Parts Fried . | . . . . . . . Impact Corruptions . | . . . . . . . Robots Melted . | . . . . . . . Combat Hostiles . | . . . . . . . Parts Melted 2 | . . . 2 . . . Heat Transferred 777 | . . . 592 185 . . Parts Sabotaged . | . . . . . . . Parts Stolen . | . . . . . . . Parts Stripped . | . . . . . . . Power Chain Reactions 1 | . 1 . . . . . Missiles Intercepted . | . . . . . . . Alert | -11 -10 -10 -9 -9 -9 -8 ------- Run | Scr Mat Min Mat Min Exi Min Peak Influence 366 | . 288 164 296 366 . 1 Initial 106 | . . 34 . 106 . . Average 142 | . 147 75 161 169 . . Maximum Alert Level 1 | . 1 . 1 1 . . Low Security (%) 74 | . 77 100 53 79 . 100 Level 1 25 | . 22 . 46 20 . . Level 2 . | . . . . . . . Level 3 . | . . . . . . . Level 4 . | . . . . . . . Level 5 . | . . . . . . . High Security . | . . . . . . . Max Security . | . . . . . . . Squads Dispatched 9 | . 4 . 4 1 . . Investigation 1 | . 1 . . . . . Extermination . | . . . . . . . Reinforcement 7 | . 3 . 4 . . . Assault 1 | . . . . 1 . . Garrison . | . . . . . . . Intercept . | . . . . . . . Construction Impeded 1 | . . . 1 . . . Haulers Reinforced . | . . . . . . . Stealth | -11 -10 -10 -9 -9 -9 -8 --------- Run | Scr Mat Min Mat Min Exi Min Distress Signals 3 | . 1 . 2 . . . Communications Jammed . | . . . . . . . Distress Signals . | . . . . . . . Times Spotted 82 | . 17 2 27 26 9 1 Peak Tracking Total 15 | . 4 2 9 5 15 1 Tactical Retreats 2 | . . . . 1 1 . Traps | -11 -10 -10 -9 -9 -9 -8 ------- Run | Scr Mat Min Mat Min Exi Min Traps Triggered 1 | . 1 . . . . . Indirectly . | . . . . . . . Trap Hack Attempts . | . . . . . . . Triggered . | . . . . . . . Disarmed . | . . . . . . . Reprogrammed . | . . . . . . . Reused . | . . . . . . . Traps Extracted . | . . . . . . . Installed . | . . . . . . . Triggered . | . . . . . . . Machines | -11 -10 -10 -9 -9 -9 -8 ---------- Run | Scr Mat Min Mat Min Exi Min Machines Disabled 10 | . . . 3 4 3 . Max in Single Turn 2 | . . . 1 2 1 . Machines Sabotaged . | . . . . . . . Garrisons Compromised . | . . . . . . . Overloaded Fab Kills . | . . . . . . . Fab Network Shutdowns . | . . . . . . . Hacking | -11 -10 -10 -9 -9 -9 -8 --------- Run | Scr Mat Min Mat Min Exi Min Machines Accessed 9 | . 1 1 5 . 2 . Terminals 6 | . 1 . 5 . . . Fabricators . | . . . . . . . Repair Stations . | . . . . . . . Recycling Units . | . . . . . . . Scanalyzers . | . . . . . . . Garrison Access . | . . . . . . . Total Hacks 26 | . 7 1 16 . 2 . Successful 16 | . 2 1 11 . 2 . Failed 10 | . 5 . 5 . . . Catastrophic . | . . . . . . . Database Lockouts . | . . . . . . . Manual 24 | . 7 . 16 . 1 . Terminals 23 | . 7 . 16 . . . Fabricators . | . . . . . . . Repair Stations . | . . . . . . . Recycling Units . | . . . . . . . Scanalyzers . | . . . . . . . Garrison Access . | . . . . . . . Terminal Hacks 11 | . 2 1 6 . 2 . Record 1 | . . . . . 1 . Part Schematic 1 | . . . 1 . . . Robot Analysis 4 | . 2 . 2 . . . Open Door 1 | . . 1 . . . . Branch Access Points 1 | . . . 1 . . . Terminal Index 1 | . . . 1 . . . Scanalyzer Index 1 | . . . 1 . . . EX-Prototype ID Bank 1 | . . . . . 1 . Fabricator Hacks . | . . . . . . . Repair Station Hacks . | . . . . . . . Recycling Unit Hacks . | . . . . . . . Scanalyzer . | . . . . . . . Garrison Access Hacks . | . . . . . . . Unauthorized Hacks 5 | . . . 5 . . . Terminals 5 | . . . 5 . . . Track 1 | . . . 1 . . . Botnet 3 | . . . 3 . . . Operators 1 | . . . 1 . . . Fabricators . | . . . . . . . Repair Stations . | . . . . . . . Recycling Units . | . . . . . . . Scanalyzers . | . . . . . . . Garrison Access . | . . . . . . . Data Cores Recovered . | . . . . . . . Used . | . . . . . . . Hacking Detections 6 | . 1 . 5 . . . Full Trace Events 2 | . 1 . 1 . . . Feedback Events . | . . . . . . . Feedback Blocked . | . . . . . . . Robot Schematics Acquired . | . . . . . . . Robots Built . | . . . . . . . Matter . | . . . . . . . Time . | . . . . . . . Total Robot Build Rating . | . . . . . . . Part Schematics Acquired 1 | . . . 1 . . . Parts Built . | . . . . . . . Matter . | . . . . . . . Time . | . . . . . . . Total Part Build Rating . | . . . . . . . Parts Repaired . | . . . . . . . Time . | . . . . . . . Parts Recycled . | . . . . . . . Recycled Matter . | . . . . . . . Retrieved Matter . | . . . . . . . Retrieved Components . | . . . . . . . Parts Scanalyzed . | . . . . . . . Part Schematics Acquired . | . . . . . . . Parts Damaged . | . . . . . . . Bothacking | -11 -10 -10 -9 -9 -9 -8 ------------ Run | Scr Mat Min Mat Min Exi Min Used RIF Installer . | . . . . . . . Robots Hacked . | . . . . . . . Non-combat . | . . . . . . . Combat . | . . . . . . . Robot Hacks Applied . | . . . . . . . Relay Couplers Released . | . . . . . . . Robots Rewired . | . . . . . . . Allies Hacked . | . . . . . . . Hacks Repelled . | . . . . . . . Allies | -11 -10 -10 -9 -9 -9 -8 -------- Run | Scr Mat Min Mat Min Exi Min Total Allies 5 | . . 4 . 1 . . Largest Group 4 | . . 4 3 1 1 . Highest-Rated Group 71 | . . 71 40 31 26 . Highest-Rated Ally 31 | . . 31 16 31 26 . Total Orders . | . . . . . . . Ally Attacks 51 | . . . 30 21 . . Total Damage 594 | . . . 317 277 . . Kills 8 | . . . 3 5 . . Allies Corrupted . | . . . . . . . Allies Melted . | . . . . . . . Intel | -11 -10 -10 -9 -9 -9 -8 ------- Run | Scr Mat Min Mat Min Exi Min Robot Analysis Total 4 | . 2 . 2 . . . Derelict Logs Recovered 3 | . . 2 . 1 . . Drone Launches . | . . . . . . . Drone Recoveries . | . . . . . . . Exploration | -11 -10 -10 -9 -9 -9 -8 ------------- Run | Scr Mat Min Mat Min Exi Min Turns Passed 4829 | . 404 821 1439 1172 944 49 Spaces Moved 2273 | 1 205 491 731 427 415 3 Core . | . . . . . . . Treads 2202 | . 135 491 731 427 415 3 Legs 71 | 1 70 . . . . . Wheels . | . . . . . . . Hover . | . . . . . . . Flight . | . . . . . . . Fastest Speed 120 | 120 120 160 160 200 200 200 Average Speed 178 | 120 146 160 175 200 200 200 Slowest Speed 200 | 120 160 160 200 200 200 200 Overloaded Moves . | . . . . . . . Propulsion Burnouts . | . . . . . . . Robots Hopped . | . . . . . . . Cave-ins Triggered . | . . . . . . . Exploration Rate (%) 52 | 2 37 97 73 84 70 7 Regions Visited 6 Branch Regions 4 Pre-discovered Areas 3 | . . 1 . 1 1 . Known Exits Taken 1 | . . . 1 . . . Unknown Exits Taken 5 | 1 1 1 . 1 1 . Scrap Searched 3 | . . 1 . 2 . . Spaces Dug 24 | . . . . 24 . . Terrain Destroyed 303 | . 13 37 70 165 17 1 Melee . | . . . . . . . Projectile 18 | . . . . . 17 1 AOE 285 | . 13 37 70 165 . . Terrain Rammed . | . . . . . . . Walls Destroyed . | . . . . . . . Machines Disabled . | . . . . . . . Actions | -11 -10 -10 -9 -9 -9 -8 --------- Run | Scr Mat Min Mat Min Exi Min Total 2876 | . 265 513 829 703 527 39 Wait 340 | . 5 2 9 236 67 21 Move 2267 | . 204 490 730 426 414 3 Hop . | . . . . . . . Pick Up 48 | . 13 2 19 3 11 . Fast Attach 12 | . 3 . 3 . 6 . Attach 13 | . 2 . 3 . 4 4 Detach 1 | . . . . . 1 . Swap 21 | . 1 . 14 2 2 2 Drop 44 | . 11 1 13 1 15 3 Fire 107 | . 25 10 36 29 1 6 Melee . | . . . . . . . Ram . | . . . . . . . Kick . | . . . . . . . Crush 23 | . 1 8 2 6 6 . Escape Stasis . | . . . . . . . Rewire . | . . . . . . . Trap . | . . . . . . . Miscellaneous . | . . . . . . . Route ------- -11/Scrapyard -10/Materials -10/Mines (discovered 2 exits: *Mat x2) -9/Materials (discovered 3 exits: [*Mat x2] / *Min) -9/Mines (discovered 2 exits: [*Mat] / *Exi) -9/Exiles -8/Mines History --------- Turn | Location | Event 1 | -11/Scrapyard | Discovered new exit (range 0) 1 | -11/Scrapyard | Entered Materials 290 | -10/Materials | Discovered new exit (range 12) 327 | -10/Materials | Build established: Mutant 405 | -10/Materials | Entered Mines 427 | -10/Mines | Learned Materials terminal intel 428 | -10/Mines | Met a Derelict bent on vengeance 604 | -10/Mines | Met a Derelict who couldn't figure out how to use a Trap Extractor 707 | -10/Mines | Received a Rocket Launcher from a helpful Derelict 748 | -10/Mines | Assisted by bots powering up and referring to "LRC-V3" 796 | -10/Mines | Learned location of Zion (-7) 1066 | -10/Mines | Discovered new exit (range 10) 1178 | -10/Mines | Received a Mining Laser from a helpful Derelict 1178 | -10/Mines | Discovered new exit (range 9) 1226 | -10/Mines | Entered Materials 1226 | -9/Materials | Accompanied by 3 allies 1226 | -9/Materials | Evolved 2 slots: Utility x2 1227 | -9/Materials | Loaded intel: 12 terminal locations 1536 | -9/Materials | Build established: Hacker-Mutant 1701 | -9/Materials | Identified exit to Mines 1750 | -9/Materials | Destroyed 8 combat bots 1807 | -9/Materials | Discovered new exit (range 9) 2217 | -9/Materials | Discovered new exit (range 15) 2567 | -9/Materials | Build established: Mutant 2665 | -9/Materials | Entered Mines 2676 | -9/Mines | Met a Derelict testing a Signal Generator 2687 | -9/Mines | Found Signal Generator 2728 | -9/Mines | Excavation squad dispatched 2728 | -9/Mines | A large section of the Mines collapsed 2870 | -9/Mines | Build established: Hauler-Mutant 2978 | -9/Mines | Excavation squad dispatched 3118 | -9/Mines | Discovered new exit (range 12) 3258 | -9/Mines | Deemed a non-threat by the Exiles lab entrance 3258 | -9/Mines | Discovered new exit (range 5) 3512 | -9/Mines | Learned location of Storage (-7) 3837 | -9/Mines | Entered Exiles 3837 | -9/Exiles | Accompanied by 1 ally 3885 | -9/Exiles | Met 8R-AWN 3919 | -9/Exiles | Met EX-HEX 3999 | -9/Exiles | Met EX-DEC 4230 | -9/Exiles | Met EX-BIN 4254 | -9/Exiles | Aligned with FarCom system 4256 | -9/Exiles | Given EX-Vault access code 4302 | -9/Exiles | Opened EX-Vault 4316 | -9/Exiles | Found AWS/Gauss 4321 | -9/Exiles | Found Cloak of Protection 4369 | -9/Exiles | Warned to stay clear of 0b10 Research branches 4386 | -9/Exiles | Exiles lab attacked by MAIN.C 4493 | -9/Exiles | Discovered new exit (range 10) 4500 | -9/Exiles | Attacked by the Exiles 4564 | -9/Exiles | Core integrity fell below 50% 4566 | -9/Exiles | Destroyed 8R-AWN 4578 | -9/Exiles | Found Prototype Device 4579 | -9/Exiles | Identified AS-neutralizer No. 17b 4599 | -9/Exiles | Found Prototype Processor 4603 | -9/Exiles | Found Prototype Ballistic Gun 4750 | -9/Exiles | Core integrity fell below 20% 4767 | -9/Exiles | Destroyed 15 combat bots 4781 | -9/Exiles | Entered Mines 4785 | -8/Mines | Identified 8R-AWN's Boregun 4792 | -8/Mines | Identified Exp. Targeting Computer 4817 | -8/Mines | 99-TNT came to Exiles' defense 4830 | -8/Mines | Destroyed by 99-TNT with 99-TNT's Nukerbomber Last Messages --------------- GOAL=ESCAPE 04785_ Identified 8R-AWN's Boregun. 04790_ Dropped Lgt. Treads. 04792_ Dropped Lrg. Storage Unit. 04792_ Identified Exp. Targeting Computer. 04816_ HV Slug penetrates 99-TNT. 04817_ 99-TNT: "I came as fast as I could... Wait, it was you!" 04818_ The unstable cave ceiling collapses. 04818_ Lgt. Armor Plating destroyed. 04819_ HV Slug penetrates 99-TNT. 04822_ The unstable cave ceiling collapses. 04822_ HV Slug penetrates Wall. 04823_ The unstable cave ceiling collapses. 04824_ HV Slug penetrates 99-TNT. 04826_ The unstable cave ceiling collapses. 04826_ Autogun destroyed. 04826_ Core Extractor disabled. 04826_ 8R-AWN's Boregun destroyed. 04826_ Lgt. Treads destroyed. 04830_ The unstable cave ceiling collapses. Map ----- +----------------------------------------------------+ | ?????????????????????????????? | | ?????????????????????????????? | | ?????????????????????????????? | | ?????????????????????????????? | | ?????????????????????????????? | | ?????????????????????????????? | | ?????????????????????????????? | | ?????????????????????????????? | | ?????????????????????????????? | | ?????????????????????????? ??? | | ????????????????????????? #?? | | ????????????????????????? #?? | | ?????????????????????????d #?? | | ?????????????????????#### ### | | ?????????????????????# # | | ?????????????????????? # | | ?????????????????????? # | | ?????????????????????? # | | ?????????????????????## | | ?????????????????????# | | ?????????????????????? | | ?????????????????????## | | ????????????????????## | | ????????????????????# | | ???????????????????## | | ????????????????#### !@ # | | ????????????????# | | ???????????????# | | ???????????????# " | | ??????????????# "" | | ??????????????# " # | | ???????????????# | | ???????????????## | | ????????????????#### # | | ???????????????????## ####### | | ????????????????????###??????? | | ?????????????????????????????? | | ?????????????????????????????? | | | | | | | | | | | | | | | | | | | | | | | | | +----------------------------------------------------+ Best States ------------- Heat Dissipation 54 Energy Generation 19 Energy Capacity 310 Matter Stores 300 Matter Capacity 300 Sight Range 16 Terrain Scan Density 10 Cloak Strength 5 Armor Coverage 300 Propulsion Shielding 33 Evasion (%) 40 Targeting Accuracy 12 Recoil Reduction 2 Offensive Hacking 20 Item Schematics ----------------- Hcp. Storage Unit | -9/Materials | Hacked Robot Schematics ------------------ None Fabricated ------------ Nothing Alien Tech Used ----------------- None Achievements -------------- None Challenges ------------ None Game ------ Seed CryofiberInsulatedInverter Manual? 0 Play Time 00:23:31 Cumulative 323.1 hours Start 2021.02.19 @ 22:40:23 End 2021.02.19 @ 23:03:21 Sessions 1 Manual Loads 0 Difficulty Rogue Special Mode None Game No. 263 Rogue 256 Adventurer 0 Explorer 7 Win Type - Total 11 Types 3/1/7/0/0/0/0/0/0 Lore% 78 Gallery% 93 Achievement% 75 Wizard Run 0 Options --------- ASCII 0 Keyboard 0 Movement Numpad Keybinds 0 Fullscreen 1 Font 18/X11Bold Map View 76x50 Tactical HUD 1 Map Filters NONE Filters NONE Steam 1 RUN: bc377f45-a6da-4e6d-b095-9dc5950eb5b3